{"text_format":"3","workbook":"xlsx","n_sheets":2,"sheets":["Dados de crescimento","Gráfico de crescimento"],"not_rendered":{"charts":1,"images":2,"defined_names":3},"read":"whole","date_system":"1900"}

{"sheet":"Dados de crescimento","index":0,"n_rows":24,"n_cols":10,"rows_kept":24,"merged":[[2,2,2,8],[3,9,5,9],[6,9,8,9],[9,9,11,9],[12,9,14,9],[15,9,17,9],[18,9,20,9],[21,9,23,9]]}
[]
[null,null,"Nome do bebê:","Davi"]
[null,null,"ACOMPANHAMENTO DE CRESCIMENTO DE BEBÊ",{"$nulls":6},1]
[null,null,"Idade","Quilos","Onças","Peso (kg)","Percentil de peso","Comprimento (cm)","Percentil de comprimento",2]
[null,null,"Dia do nascimento",7,0,{"$f":"IF(COUNT(Dados[[#This Row],[Quilos]:[Onças]])>0,Dados[[#This Row],[Quilos]]+(Dados[[#This Row],[Onças]]/16),NA())","v":7},40,19.5,70]
[null,null,"4 dias",6,8,{"$f":"IF(COUNT(Dados[[#This Row],[Quilos]:[Onças]])>0,Dados[[#This Row],[Quilos]]+(Dados[[#This Row],[Onças]]/16),NA())","v":6.5},41,19.5,70]
[null,null,"7 dias",6,4.8,{"$f":"IF(COUNT(Dados[[#This Row],[Quilos]:[Onças]])>0,Dados[[#This Row],[Quilos]]+(Dados[[#This Row],[Onças]]/16),NA())","v":6.3},42,20,71,3]
[null,null,"11 dias",6,9.6,{"$f":"IF(COUNT(Dados[[#This Row],[Quilos]:[Onças]])>0,Dados[[#This Row],[Quilos]]+(Dados[[#This Row],[Onças]]/16),NA())","v":6.6},43,20,71]
[null,null,"14 dias",7,0,{"$f":"IF(COUNT(Dados[[#This Row],[Quilos]:[Onças]])>0,Dados[[#This Row],[Quilos]]+(Dados[[#This Row],[Onças]]/16),NA())","v":7},44,20,71]
[null,null,"18 dias",7,12,{"$f":"IF(COUNT(Dados[[#This Row],[Quilos]:[Onças]])>0,Dados[[#This Row],[Quilos]]+(Dados[[#This Row],[Onças]]/16),NA())","v":7.75},45,21,72,4]
[null,null,"21 dias",8,8,{"$f":"IF(COUNT(Dados[[#This Row],[Quilos]:[Onças]])>0,Dados[[#This Row],[Quilos]]+(Dados[[#This Row],[Onças]]/16),NA())","v":8.5},46,21,72]
[null,null,"25 dias",null,null,{"$f":"IF(COUNT(Dados[[#This Row],[Quilos]:[Onças]])>0,Dados[[#This Row],[Quilos]]+(Dados[[#This Row],[Onças]]/16),NA())","v":{"$error":"#N/A"}}]
[null,null,"28 dias",null,null,{"$f":"IF(COUNT(Dados[[#This Row],[Quilos]:[Onças]])>0,Dados[[#This Row],[Quilos]]+(Dados[[#This Row],[Onças]]/16),NA())","v":{"$error":"#N/A"}},{"$nulls":3},5]
[null,null,"5 semanas",null,null,{"$f":"IF(COUNT(Dados[[#This Row],[Quilos]:[Onças]])>0,Dados[[#This Row],[Quilos]]+(Dados[[#This Row],[Onças]]/16),NA())","v":{"$error":"#N/A"}}]
[null,null,"6 semanas",null,null,{"$f":"IF(COUNT(Dados[[#This Row],[Quilos]:[Onças]])>0,Dados[[#This Row],[Quilos]]+(Dados[[#This Row],[Onças]]/16),NA())","v":{"$error":"#N/A"}}]
[null,null,"7 semanas",null,null,{"$f":"IF(COUNT(Dados[[#This Row],[Quilos]:[Onças]])>0,Dados[[#This Row],[Quilos]]+(Dados[[#This Row],[Onças]]/16),NA())","v":{"$error":"#N/A"}},{"$nulls":3},6]
[null,null,"2 meses",null,null,{"$f":"IF(COUNT(Dados[[#This Row],[Quilos]:[Onças]])>0,Dados[[#This Row],[Quilos]]+(Dados[[#This Row],[Onças]]/16),NA())","v":{"$error":"#N/A"}}]
[null,null,"3 meses",null,null,{"$f":"IF(COUNT(Dados[[#This Row],[Quilos]:[Onças]])>0,Dados[[#This Row],[Quilos]]+(Dados[[#This Row],[Onças]]/16),NA())","v":{"$error":"#N/A"}}]
[null,null,"6 meses",null,null,{"$f":"IF(COUNT(Dados[[#This Row],[Quilos]:[Onças]])>0,Dados[[#This Row],[Quilos]]+(Dados[[#This Row],[Onças]]/16),NA())","v":{"$error":"#N/A"}}]
[null,null,"9 meses",null,null,{"$f":"IF(COUNT(Dados[[#This Row],[Quilos]:[Onças]])>0,Dados[[#This Row],[Quilos]]+(Dados[[#This Row],[Onças]]/16),NA())","v":{"$error":"#N/A"}}]
[null,null,"12 meses",null,null,{"$f":"IF(COUNT(Dados[[#This Row],[Quilos]:[Onças]])>0,Dados[[#This Row],[Quilos]]+(Dados[[#This Row],[Onças]]/16),NA())","v":{"$error":"#N/A"}}]
[null,null,"18 meses",null,null,{"$f":"IF(COUNT(Dados[[#This Row],[Quilos]:[Onças]])>0,Dados[[#This Row],[Quilos]]+(Dados[[#This Row],[Onças]]/16),NA())","v":{"$error":"#N/A"}}]
[null,null,"24 meses",null,null,{"$f":"IF(COUNT(Dados[[#This Row],[Quilos]:[Onças]])>0,Dados[[#This Row],[Quilos]]+(Dados[[#This Row],[Onças]]/16),NA())","v":{"$error":"#N/A"}}]
[null,null,"36 meses",null,null,{"$f":"IF(COUNT(Dados[[#This Row],[Quilos]:[Onças]])>0,Dados[[#This Row],[Quilos]]+(Dados[[#This Row],[Onças]]/16),NA())","v":{"$error":"#N/A"}}]

{"sheet":"Gráfico de crescimento","index":1,"n_rows":0,"n_cols":0,"rows_kept":0}